Cogmind - Beta 16 @@@ ROGUE MODE // 2025.11.18 @ 00:32:26 Player: Skysub Result: Destroyed by G-73 Enforcer with Phase Gun Performance ------------- Evolutions (6) 3000 Regions Visited (17) 3400 Robots Destroyed (253) 1265 Value Destroyed (8380) 8380 Prototype IDs (46) 920 Alien Tech Used (1) 200 Bonus (4880) 4880 TOTAL SCORE: 22045 Bonus ------- High Alert Combat Kills 1386 Follower Combat Kills 2162 Network Hubs Disabled 400 Met Zhirov 300 Built Enhanced Grunts 300 Met R17 at Cetus 500 Friendly Fire -168 Cogmind --------- Core Integrity 0/1150 Matter 231/300 Energy 49/230 System Corruption 0% Temperature Cool (0) Movement Flying (106) Ox1 Location -4/Factory Parts ------- > --- POWER (2) -------- Light Nuclear Core Light Antimatter Reactor > --- PROPULSION (5) --- VTOL Module VTOL Module VTOL Module VTOL Module > --- UTILITY (9) ------ Power Amplifier Gravity Neutralizer Advanced Signal Interpreter Terrain Scan Processor Improved Melee Analysis Suite Nanoactuators Experimental ECM Suite Advanced Hacking Suite > --- WEAPON (3) ------- Scythe Heavy Pick Enhanced Force Lance > --- INVENTORY (5) ---- Light Nuclear Core Graphene Brace Advanced Focal Shield Transdimensional Reconstructor Heavy Proton Cannon Peak State ------------ > --- POWER ------------ Quantum Reactor > --- PROPULSION ------- Wheeled Huge-Cooled Exoskeleton Wheel > --- UTILITY ---------- Armored Scrap Engine Advanced Heat Sink Medium Storage Unit Advanced Targeting Computer Centrium Medium Armor Plating Centrium Medium Armor Plating Centrium Medium Armor Plating Improved Hacking Suite Rainbow Chip > --- WEAPON ----------- Advanced Variable Charge Gun Improved Heavy Machine Gun KE Penetrator Advanced KE Penetrator > --- INVENTORY -------- Compact Wheel Structural Scanner Advanced Visual Processing Unit Improved Medium Armor Plating Layered Medium Armor Plating High-powered Tractor Beam Wave Gun Heavy Gauss Cannon Scatter Rocket Array Phasing Sabre [Rating: 131] Favorites ----------- Power Constructs Engine Light Ion Engine Power Core Constructs Reactor Quantum Reactor Propulsion Compact Wheel Treads Light Treads Wheel Compact Wheel Flight Unit VTOL Module Utility Huge Storage Unit Device Armored Scrap Engine Storage Huge Storage Unit Processor Rainbow Chip Hackware Improved Hacking Suite Protection Centrium Medium Armor Plating Weapon Enhanced Autogun Energy Gun Medium Laser Energy Cannon Heavy Plasma Cannon Ballistic Gun Enhanced Autogun Ballistic Cannon Heavy Gauss Cannon Launcher Scatter Rocket Array Special Weapon Plasma Cutter Impact Weapon Makeshift Hammer Slashing Weapon Phasing Sabre Piercing Weapon Enhanced Force Lance Build | -11 -10 -10 -10 -8 -8 -8 -6 -6 -6 -6 -6 -5 -5 -5 -5 -4 -4 ------- Run | Yrd Mat Min Sub Mat Sto Rec Fac Ext Cet Arc Hub Fac Upp Upp Zhi Pro Fac Slots Evolved 12 | . . . . 4 . . 4 . . . . 2 . . . . 2 Power 1 | . . . . . . . . . . . . . . . . . 1 Propulsion 3 | . . . . 1 . . 1 . . . . . . . . . 1 Utility 7 | . . . . 2 . . 3 . . . . 2 . . . . . Weapon 1 | . . . . 1 . . . . . . . . . . . . . Parts Attached 174 | 7 9 6 7 16 23 5 10 9 9 . 3 25 1 1 1 . 42 Power 16 | 1 2 . 2 1 1 . 1 1 . . . 1 . . . . 6 Engine 7 | 1 1 . 2 . 1 . . . . . . . . . . . 2 Core 6 | . 1 . . 1 . . 1 1 . . . . . . . . 2 Reactor 3 | . . . . . . . . . . . . 1 . . . . 2 Propulsion 31 | 2 2 2 . 3 3 3 1 . 1 . . 7 . . . . 7 Treads 3 | 2 . . . . . . . . 1 . . . . . . . . Leg . | . . . . . . . . . . . . . . . . . . Wheel 21 | . 2 2 . 3 3 3 1 . . . . 7 . . . . . Hover . | . . . . . . . . . . . . . . . . . . Flight 7 | . . . . . . . . . . . . . . . . . 7 Utility 72 | 2 3 1 2 6 7 2 4 3 5 . 3 10 . 1 1 . 22 Device 33 | 1 . 1 . 2 4 1 2 1 . . . 4 . . 1 . 16 Storage 5 | 1 2 . . . . . . . . . . 1 . 1 . . . Processor 6 | . . . . . . . . . . . . 2 . . . . 4 Hackware 3 | . . . . . . . . . . . 1 1 . . . . 1 Protection 25 | . 1 . 2 4 3 1 2 2 5 . 2 2 . . . . 1 Artifact . | . . . . . . . . . . . . . . . . . . Weapon 55 | 2 2 3 3 6 12 . 4 5 3 . . 7 1 . . . 7 Energy Gun 3 | . 1 . . . . . . . 1 . . 1 . . . . . Energy Cannon 1 | . . . . . . . . . . . . . 1 . . . . Ballistic Gun 32 | 2 . 2 1 5 7 . 4 3 2 . . 4 . . . . 2 Ballistic Cannon 4 | . . . 1 . 1 . . 1 . . . 1 . . . . . Launcher 6 | . 1 1 . 1 3 . . . . . . . . . . . . Special Weapon 1 | . . . . . . . . 1 . . . . . . . . . Impact Weapon 1 | . . . . . 1 . . . . . . . . . . . . Slashing Weapon 5 | . . . 1 . . . . . . . . 1 . . . . 3 Piercing Weapon 2 | . . . . . . . . . . . . . . . . . 2 Special Melee Weapon . | . . . . . . . . . . . . . . . . . . Unidentified Prototypes 19 | . . . . . 6 1 2 . 4 . . 2 . . 1 . 3 Corrupted Parts 2 | . . . . . . . . . 1 . . 1 . . . . . System Corruption 8 | . . . . . . . . . 3 . . 5 . . . . . Parts Lost 74 | . 1 1 1 9 1 . 2 4 . . 2 21 . . . 2 30 Power 8 | . . . 1 . . . . 1 . . . 3 . . . . 3 Propulsion 20 | . . 1 . 2 1 . 2 2 . . 1 4 . . . . 7 Utility 28 | . . . . 5 . . . 1 . . . 6 . . . 1 15 Weapon 18 | . 1 . . 2 . . . . . . 1 8 . . . 1 5 Highest Loss Streak 20 | . 1 1 1 9 1 . 2 1 . . 2 4 . . . 1 20 To Critical Strikes . | . . . . . . . . . . . . . . . . . . Average Backups 19 | 3 14 23 23 21 23 22 22 24 24 24 23 14 9 9 9 9 6 Power . | . 1 1 . 1 . . . . . 1 1 . . . . . . Propulsion 1 | 1 3 3 2 . . 1 . . . 1 1 . 1 2 1 1 . Utility 10 | . 5 13 14 13 14 13 14 13 12 12 13 7 4 5 5 5 2 Weapon 6 | 1 4 5 6 5 7 6 6 9 10 9 8 5 2 2 2 2 2 Tool/Special . | . . . . . . . . . . . . . . . . . . Unused Backups 55 | . 4 3 5 6 9 2 1 . 8 1 . 6 . . . . 10 Power 2 | . . . . 2 . . . . . . . . . . . . . Propulsion 7 | . 2 1 . . . . . . . . . 2 . . . . 2 Utility 21 | . 1 . 2 3 4 1 1 . 1 1 . 3 . . . . 4 Weapon 24 | . 1 2 3 1 5 1 . . 7 . . 1 . . . . 3 Tool/Special 1 | . . . . . . . . . . . . . . . . . 1 Average Slot Usage (%) 85 | . 99 99 99 91 96 90 84 79 69 73 72 77 77 78 62 66 58 Engine 4 | . 6 14 13 . . 9 1 . . . . . 5 5 4 . 1 Core 3 | . 7 . . 8 8 . 4 5 6 6 6 1 . . . . 2 Treads 2 | . 13 . . . . . 5 4 4 6 6 3 2 . . . . Wheel 15 | . 14 27 28 20 25 27 19 15 3 . . 5 2 5 4 . 2 Device 12 | . 9 13 5 16 10 9 15 13 6 6 12 10 15 15 19 26 20 Storage 8 | . 14 14 14 9 9 9 6 6 6 6 6 4 5 5 5 5 2 Processor 2 | . . . . . . . . . . . . 7 10 10 10 11 8 Hackware 1 | . . . . . . . . . . . 5 6 5 5 5 5 2 Protection 10 | . 4 . 8 9 14 8 10 11 22 26 14 14 10 10 7 . . Energy Gun 2 | . . 14 . . . . . . 6 6 6 3 . . . . . Ballistic Gun 16 | . 26 14 14 26 24 23 19 16 9 13 12 11 10 10 . . . Ballistic Cannon 1 | . . . 7 . . . . 2 . . . . . . . . . Peak Build Rating 131 | 7 11 11 16 27 43 51 69 75 110 96 98 131 115 115 108 103 114 Average Rating 56 | 5 9 10 13 24 35 44 65 69 92 95 90 111 110 113 91 97 72 On Entrance 62 | . 7 9 11 16 27 35 51 69 71 95 96 93 115 113 113 103 92 Avg Prop Armor Cover (%) 4 | . . . . . . . 2 3 7 . . 8 . . . . . Naked Turns 12 | . . . . . . . . . . . . . . . . . 12 Heaviest Build 147 | 13 92 90 93 106 115 110 129 131 146 143 136 147 60 60 51 45 41 Greatest Support 99 | 40 40 26 26 42 48 44 44 57 99 79 79 52 84 84 84 50 50 Greatest Overweight (x) 14 | . 3 8 3 6 3 2 8 6 3 1 2 14 2 . 1 . 3 Average Overweight (x) 2 | . 1 3 3 2 2 2 2 4 1 1 1 3 . . . . . Largest Inventory Capacity 25 | 8 25 25 25 25 25 25 25 25 25 25 25 25 10 10 10 10 10 Average Capacity 21 | 7 16 25 25 25 25 25 25 25 25 25 25 16 10 10 10 10 7 Most Carried 25 | 6 25 25 25 25 25 25 25 25 25 25 25 25 10 10 10 10 10 Average Carried 20 | 3 14 24 24 24 24 24 24 24 24 24 24 14 9 10 9 10 6 Final Capacity 25 | 8 25 25 25 25 25 25 25 25 25 25 25 10 10 10 10 10 5 Final Carried 25 | 6 25 24 25 25 25 25 25 25 25 25 24 10 10 10 10 10 5 Scrap Engine Consumption 137 | . . . . . . 7 18 22 25 5 . 45 3 2 3 1 6 Constructs Created 9 | . . . . . . . 1 1 3 . . 4 . . . . . Constructs Modified 40 | . . . . . . . 1 7 9 1 . 11 6 . 2 . 3 Class Distribution -------------------- 28% | Mutant 25% | Commander-Tank 22% | Scavenger-Tank 5% | Tank 5% | Scavenger-Mutant 5% | Commander-Construct 3% | Commander-Mutant Dominant Class ---------------- Mutant | -10/Materials Mutant | -10/Mines Mutant | -10/Subcaves Scavenger-Tank | -8/Materials Tank | -8/Storage Commander-Tank | -8/Recycling Commander-Tank | -6/Factory Commander-Tank | -6/Extension Commander-Construct | -6/Cetus Commander-Construct | -6/Archives Commander-Construct | -6/Hub_04(d) Scavenger-Tank | -5/Factory Scavenger-Tank | -5/Upper Caves Scavenger-Tank | -5/Upper Caves Scavenger-Mutant | -5/Zhirov Scavenger-Mutant | -4/Proximity Caves Mutant | -4/Factory Resources | -11 -10 -10 -10 -8 -8 -8 -6 -6 -6 -6 -6 -5 -5 -5 -5 -4 -4 ----------- Run | Yrd Mat Min Sub Mat Sto Rec Fac Ext Cet Arc Hub Fac Upp Upp Zhi Pro Fac Matter Collected 8089 | 232 689 81 246 493 1052 320 502 1072 351 100 58 2201 255 74 . 39 324 Remotely 1412 | . . . . 74 . . 335 1003 . . . . . . . . . Salvage Created 11431 | 58 570 139 96 786 1273 299 484 1501 101 293 149 4484 377 292 . . 529 Parts 554 | 11 48 16 6 41 49 11 33 43 5 22 6 208 14 10 . . 31 Haulers Intercepted 13 | . 1 . . 2 5 . . 3 . . . 1 . . . . 1 Recyclers Shooed 10 | . . . . 2 2 . 2 . . . . 4 . . . . . Parts Field Recycled . | . . . . . . . . . . . . . . . . . . Retrieved Matter . | . . . . . . . . . . . . . . . . . . Parts Self-Destructed 30 | . . . 15 . . . . . . . . . 15 . . . . Prevented 3 | . . . . . . . . . . . . . 3 . . . . Parts Restored . | . . . . . . . . . . . . . . . . . . Kills | -11 -10 -10 -10 -8 -8 -8 -6 -6 -6 -6 -6 -5 -5 -5 -5 -4 -4 ------- Run | Yrd Mat Min Sub Mat Sto Rec Fac Ext Cet Arc Hub Fac Upp Upp Zhi Pro Fac Combat Hostiles Destroyed 160 | . 12 5 2 13 12 6 8 18 1 3 2 60 7 . . . 11 Melee 13 | . . . . . 1 1 . . . . . . . . . . 11 Guns 111 | . 9 4 1 9 9 5 3 13 1 3 1 52 1 . . . . Cannons 7 | . . . 1 . . . . 3 . . . . 3 . . . . AOE 24 | . 3 1 . 4 . . 5 2 . . . 8 1 . . . . Classes Destroyed 19 | 1 6 . 2 4 . 1 1 2 . . . 2 . . . . . Worker 32 | . 2 1 . . . . 3 . . . 1 24 . . . . 1 Builder 14 | . 3 . . . . . 2 . . . . 7 . . . . 2 Tunneler 7 | 3 . 1 . . . . 3 . . . . . . . . . . Hauler 14 | . 1 . . 2 5 . 1 3 . . . 1 . . . . 1 Recycler 13 | . . . . 2 6 . . 1 . . . 4 . . . . . Operator 3 | . . . . 1 . . . . . 2 . . . . . . . Watcher 10 | . 2 . . 2 1 . . 1 1 . . 3 . . . . . Swarmer 35 | . 3 4 . 3 . . 4 . . . . 11 1 . . . 9 Grunt 63 | . 9 1 . 5 2 . 1 15 . . . 26 4 . . . . Brawler 1 | . . . . . . . . . . . . 1 . . . . . Duelist 2 | . . . . 1 . . . . . . . . 1 . . . . Protector 3 | . . . . . . 1 1 . . . 1 . . . . . . Sentry 28 | . . . 1 3 8 2 1 2 . 3 1 6 1 . . . . Specialist 2 | . . . . . . . . . . . . 2 . . . . . Hunter 13 | . . . . 1 2 . 2 . . . . 6 . . . . 2 Programmer 7 | . . . . . . . 1 . . . . 6 . . . . . Heavy 2 | . . . . . . . . . . . . 2 . . . . . Behemoth 1 | . . . . . . . . 1 . . . . . . . . . Cetus Guard 1 | . . . . . . . . . 1 . . . . . . . . Subdweller 4 | . . . 1 . . 3 . . . . . . . . . . . Decomposer 1 | . . . . . . . . . . . . . 1 . . . . Thug 1 | . . . . . . . . 1 . . . . . . . . . Savage 1 | . . . . . . . . 1 . . . . . . . . . Best Kill Streak 19 | 2 5 5 1 9 4 2 10 4 1 2 2 19 4 . . . 6 Combat Bots Only 11 | . 5 3 1 8 3 2 5 3 1 2 1 11 4 . . . 5 Max Kills in Single Turn 8 | 2 2 1 1 2 1 1 8 2 1 1 1 6 1 . . . 1 Gunslinging 1 | . 1 . . 1 . . . . . . . . . . . . . Exploded 5 | . 1 1 . 2 . . 4 2 . . . 5 1 . . . . Melee 1 | . . . . . 1 1 . . . . . . . . . . 1 Uniques/NPCs Destroyed . | . . . . . . . . . . . . . . . . . . Combat | -11 -10 -10 -10 -8 -8 -8 -6 -6 -6 -6 -6 -5 -5 -5 -5 -4 -4 -------- Run | Yrd Mat Min Sub Mat Sto Rec Fac Ext Cet Arc Hub Fac Upp Upp Zhi Pro Fac Hostile Shots Fired 1416 | . 45 16 23 78 52 16 97 130 14 8 64 276 28 3 . 88 478 Missed 411 | . 9 2 7 19 8 8 25 40 4 2 20 65 3 . . 37 162 Hits 1005 | . 36 14 16 59 44 8 72 90 10 6 44 211 25 3 . 51 316 Melee 4 | . . . . 4 . . . . . . . . . . . . . Projectile 1001 | . 36 14 16 55 44 8 72 90 10 6 44 211 25 3 . 51 316 AOE 1 | . . . . . . . . . . . . . . . . . 1 Critical Strikes 54 | . 3 1 1 5 1 . 3 5 4 1 5 9 2 . . 4 10 Actively Blocked 5 | . . . . . . . . . . . . . . . . . 5 Damage Taken 17206 | . 538 146 345 1002 613 145 895 1108 188 110 1307 4713 675 82 . 786 4553 Core 2013 | . 107 43 83 162 31 . 69 21 22 . . 129 40 . . 137 1169 Absorbed by Shields 1164 | . . . . . . 14 229 393 95 22 11 121 . . . 226 53 Ignored by Resistances 49 | . . . . . 29 . 20 . . . . . . . . . . Regen/Repaired (Parts) 1644 | . . . . . . 70 46 155 50 . 5 607 439 . 21 . 251 Core Remaining (%) 65 | 100 . . 6 . . 64 . . . . 86 . . . . 69 . Volleys Fired 508 | 3 47 12 19 42 55 16 26 74 10 14 7 155 18 6 . . 4 Largest 4 | 2 2 2 2 3 3 3 3 3 3 3 3 4 4 3 . . 1 Hottest 216 | 40 70 80 58 81 75 75 108 104 90 124 177 198 216 166 . . 30 Shots Fired 1403 | 6 90 22 38 113 164 48 74 217 29 42 17 479 45 15 . . 4 Gun 1309 | 6 86 21 19 108 164 48 72 190 29 42 17 469 26 8 . . 4 Cannon 77 | . . . 19 . . . . 25 . . . 8 18 7 . . . Launcher 16 | . 4 1 . 5 . . 2 1 . . . 2 1 . . . . Special 1 | . . . . . . . . 1 . . . . . . . . . Kinetic 1233 | 6 84 11 38 108 164 48 72 215 28 28 11 404 9 3 . . 4 Thermal 154 | . 2 10 . . . . . 1 1 14 6 73 35 12 . . . Explosive 16 | . 4 1 . 5 . . 2 1 . . . 2 1 . . . . Electromagnetic . | . . . . . . . . . . . . . . . . . . Robot Hit Streak 25 | 3 10 4 14 8 18 20 5 13 5 13 8 25 8 6 . . 10 Robot Miss Streak 7 | 1 5 3 3 3 5 2 7 6 2 2 1 4 7 1 . . . Penetration Max 1 | . . . . . . . . 1 . 1 . 1 . . . . 1 Secondary Targets 20 | . 1 1 . 6 . . . 2 . 1 . 9 . . . . . Max Gunslinging Chain 2 | . 1 1 . 2 . . . 1 . 1 . 1 . . . . . Shots Hit Robots 928 | 3 53 10 26 73 101 35 37 139 19 27 11 323 27 7 . 7 30 Core Hits 504 | 3 33 8 4 41 32 6 39 78 9 14 6 183 25 7 . . 16 Critical Kills 21 | . 1 . . . 2 . . . . 2 . 15 1 . . . . Critical Parts Destroyed 25 | . . . . 1 3 . . 1 . . . 20 . . . . . Critical Strikes 54 | . 1 . . 1 5 1 . 6 . 2 . 36 1 . . . 1 Burn 1 | . . . . . . . . . . . . 1 . . . . . Meltdown 1 | . . . . . . . . . . . . . 1 . . . . Destroy 43 | . 1 . . 1 1 1 . 2 . 2 . 35 . . . . . Blast 4 | . . . . . . . . 4 . . . . . . . . . Smash 4 | . . . . . 4 . . . . . . . . . . . . Sever 1 | . . . . . . . . . . . . . . . . . 1 Melee Attacks 114 | . . . 5 . 23 4 . . . . . 7 . . . 12 63 Impact 27 | . . . . . 23 4 . . . . . . . . . . . Slashing 74 | . . . 5 . . . . . . . . 7 . . . 12 50 Piercing 13 | . . . . . . . . . . . . . . . . . 13 Sneak Attacks 13 | . . . . . 7 1 . . . . . . . . . . 5 Combat Hostiles . | . . . . . . . . . . . . . . . . . . Follow-up Attacks . | . . . . . . . . . . . . . . . . . . Damage Inflicted 28042 | 44 909 235 445 1835 2424 738 1579 3765 474 816 631 10944 943 323 . 294 1643 Guns 19842 | 44 656 103 186 1249 1394 591 912 2640 474 816 312 9973 266 130 . . 96 Cannons 1719 | . . . 259 . . . . 758 . . . 156 353 193 . . . Explosions 3362 | . 251 132 . 586 . . 667 367 . . 285 750 324 . . . . Melee 3078 | . . . . . 1030 147 . . . . . 65 . . . 294 1542 Ramming 41 | . 2 . . . . . . . . . 34 . . . . . 5 Kinetic 18812 | 44 644 53 445 1249 1394 591 912 3398 474 577 192 8538 135 70 . . 96 Thermal 2804 | . 12 105 . . . . . . . 239 120 1591 484 253 . . . Explosive 3022 | . 251 77 . 586 . . 667 367 . . . 750 324 . . . . Electromagnetic 285 | . . . . . . . . . . . 285 . . . . . . Impact 1177 | . . . . . 1030 147 . . . . . . . . . . . Slashing 1362 | . . . . . . . . . . . . 65 . . . 294 1003 Piercing 539 | . . . . . . . . . . . . . . . . . 539 Highest Corruption 15 | . . . . . . . 3 3 6 6 15 9 9 9 9 14 . Average Corruption 5 | . . . . . . . 2 3 5 6 6 7 9 9 9 11 . Corruption Purged . | . . . . . . . . . . . . . . . . . . Corruption Blocked . | . . . . . . . . . . . . . . . . . . Effects 149 | . . . . . . . 4 33 15 6 6 49 19 8 3 6 . Message Errors 27 | . . . . . . . 1 6 1 1 2 11 4 . . 1 . Matter Fused 42 | . . . . . . . 2 12 6 2 1 8 5 2 1 3 . Heat Flow Errors 18 | . . . . . . . . 2 2 . 1 4 4 3 . 2 . Energy Discharges 16 | . . . . . . . 1 2 3 . . 7 1 2 . . . Parts Rejected 1 | . . . . . . . . . . . . . 1 . . . . Parts Fused 2 | . . . . . . . . . . . . . 2 . . . . Data Loss (minor) 11 | . . . . . . . . 4 1 . 1 2 1 . 2 . . Data Loss (major) 4 | . . . . . . . . 1 . 1 . 2 . . . . . Misfires 8 | . . . . . . . . 1 1 . . 5 . 1 . . . Alerts 7 | . . . . . . . . 1 . 2 . 3 1 . . . . Weapon Failures 13 | . . . . . . . . 4 1 . 1 7 . . . . . Overload Shots 1 | . . . . . . . . . . . 1 . . . . . . Overflow Damage 848 | . 7 18 5 9 302 101 26 8 . . 24 85 . 56 . 41 166 Projectiles 69 | . . . 5 . . . . 8 . . . . . 56 . . . Explosions 169 | . 7 18 . 9 . . 26 . . . 24 85 . . . . . Melee 610 | . . . . . 302 101 . . . . . . . . . 41 166 Knockbacks 10 | . . . 1 . 3 . . 6 . . . . . . . . . Impact 3 | . . . . . 3 . . . . . . . . . . . . Kinetic 5 | . . . 1 . . . . 4 . . . . . . . . . Secondary 2 | . . . . . . . . 2 . . . . . . . . . Self-Inflicted Damage 458 | . 21 15 . 34 . . 71 . . . 105 65 145 . . . 2 Shots 14 | . 1 1 . 1 . . 3 . . . 1 1 6 . . . . Rammed 6 | . 2 . . . . . . . . 1 1 . . . . . 2 Targets Rammed 6 | . 2 . . . . . . . . 1 1 . . . . . 2 Kicked . | . . . . . . . . . . . . . . . . . . Crushed . | . . . . . . . . . . . . . . . . . . Highest Temperature 460 | . 65 40 . 359 364 153 313 317 208 257 244 460 277 208 . 130 393 Average Temperature 103 | . 23 15 . 158 121 61 87 84 77 92 94 117 113 102 . 65 201 Received Heat Transfer 2553 | . 279 45 15 360 189 9 41 460 . 13 48 753 135 12 . 167 27 Effects 12 | . . . . 2 . . . 1 . 1 . 8 . . . . . Shutdowns 2 | . . . . . . . . . . . . 2 . . . . . Energy Bleed 3 | . . . . . . . . 1 . . . 2 . . . . . Interference 1 | . . . . . . . . . . 1 . . . . . . . Damage (minor) 2 | . . . . 2 . . . . . . . . . . . . . Damage (major) 4 | . . . . . . . . . . . . 4 . . . . . Siege Activations 1 | . . . . . . . . . . . . 1 . . . . . Total Turns 19 | . . . . . . . . . . . . 19 . . . . . Longest Duration 19 | . . . . . . . . . . . . 19 . . . . . Martial Activations . | . . . . . . . . . . . . . . . . . . Shielding Activations . | . . . . . . . . . . . . . . . . . . Robots Disrupted . | . . . . . . . . . . . . . . . . . . Combat Hostiles . | . . . . . . . . . . . . . . . . . . Robots Corrupted 5 | . . . . . 4 . . . . . 1 . . . . . . Combat Hostiles 3 | . . . . . 2 . . . . . 1 . . . . . . Parts Fried 12 | . . . . . 5 2 1 . . . 4 . . . . . . Impact Corruptions 14 | . . . . . 9 5 . . . . . . . . . . . Robots Melted 2 | . . . . . . . . . . . . . 2 . . . . Combat Hostiles 2 | . . . . . . . . . . . . . 2 . . . . Parts Melted 2 | . . . . . . . 1 . . . . . 1 . . . . Heat Transferred 4288 | . 37 198 . . . . . . . 370 148 2035 1000 500 . . . Parts Sabotaged . | . . . . . . . . . . . . . . . . . . Parts Stolen . | . . . . . . . . . . . . . . . . . . Parts Stripped . | . . . . . . . . . . . . . . . . . . Power Chain Reactions . | . . . . . . . . . . . . . . . . . . Alert | -11 -10 -10 -10 -8 -8 -8 -6 -6 -6 -6 -6 -5 -5 -5 -5 -4 -4 ------- Run | Yrd Mat Min Sub Mat Sto Rec Fac Ext Cet Arc Hub Fac Upp Upp Zhi Pro Fac Maximum Alert Level 4 | . 1 . . 1 . . 2 3 2 1 1 4 . . . . 2 Low Security (%) 61 | 100 95 100 . 77 100 100 . 55 . 14 99 32 . . . . 5 Level 1 16 | . 4 . . 22 . . 52 26 9 85 . 4 . . . . 61 Level 2 12 | . . . . . . . 47 12 90 . . 7 . . . . 33 Level 3 6 | . . . . . . . . 4 . . . 35 . . . . . Level 4 3 | . . . . . . . . . . . . 19 . . . . . Level 5 . | . . . . . . . . . . . . . . . . . . High Security . | . . . . . . . . . . . . . . . . . . Max Security . | . . . . . . . . . . . . . . . . . . Peak Influence 1453 | 10 213 190 . 303 110 85 534 989 605 274 194 1453 . . . . 618 Initial 618 | . . 42 . . . 15 400 175 543 152 73 57 . . . . 618 Average 250 | 2 103 58 . 129 39 27 401 256 489 230 95 656 . . . . 321 Influence Increases 9533 | 15 431 366 50 621 494 421 966 1559 360 198 435 2176 170 . . 75 1196 Destroy 0b10 Robot/C 4020 | . 240 220 40 340 240 120 240 660 160 80 120 1200 140 . . . 220 Destroy 0b10 Robot/NC 485 | 15 40 10 . 35 60 5 40 35 10 10 10 195 . . . . 20 Destroy Leader 750 | . 56 40 . 88 122 . 70 74 . . 30 238 . . . . 32 Allied During Kill 1340 | . . 52 10 28 . 105 177 622 170 90 86 . . . . . . Successful Hack 207 | . 23 . . 35 25 9 . 31 . . 12 28 . . . . 44 Select Force Hacks 230 | . . . . . . 180 . . . . 50 . . . . . . Disable Machine 375 | . 15 30 . 75 45 . 15 45 . 15 15 90 . . . . 30 Destroy Structure 526 | . 12 14 . 20 2 2 24 32 5 3 112 260 . . . . 40 Advance Influence 1000 | . . . . . . . 400 . . . . . . . . . 600 Partial Spotted 90 | . 15 . . . . . . . . . . 30 . . . . 45 Lose Combat Pursuer 510 | . 30 . . . . . . 60 15 . . 135 30 . . 75 165 Influence Decreases 9295 | 15 322 291 232 623 453 462 608 947 949 369 527 1240 605 248 371 45 988 Entered New Map 2120 | . . 67 96 2 . 26 . 183 427 229 137 61 391 118 371 . 12 Time Decay 4481 | 15 312 214 136 441 396 376 278 574 302 120 100 522 214 110 . 45 326 Search Patrol Dispatched 300 | . . . . . . . 100 . . . . . . . . . 200 Lost Part 707 | . 10 10 . 90 10 . 20 40 . . 20 207 . . . . 300 Lost Ally 1087 | . . . . 90 47 60 210 150 220 20 270 . . 20 . . . Purge Threat 600 | . . . . . . . . . . . . 450 . . . . 150 Squads Dispatched 38 | . 2 . . 1 4 . 1 3 . . 4 17 . . . . 6 Investigation 6 | . 1 . . . . . . 1 . . 1 1 . . . . 2 Extermination 5 | . . . . . . . 1 . . . . 3 . . . . 1 Reinforcement 21 | . 1 . . 1 3 . . 1 . . 3 9 . . . . 3 Assault 4 | . . . . . . . . 1 . . . 3 . . . . . Garrison 2 | . . . . . 1 . . . . . . 1 . . . . . Intercept . | . . . . . . . . . . . . . . . . . . Searches Triggered 3 | . . . . . . . 1 . . . . . . . . . 2 Construction Impeded 3 | . . . . . . . . . . . . 3 . . . . . Haulers Reinforced 3 | . . . . . . . . . . . . 3 . . . . . Active Scanning Responses . | . . . . . . . . . . . . . . . . . . Cargo Convoy Interrupts . | . . . . . . . . . . . . . . . . . . Stealth | -11 -10 -10 -10 -8 -8 -8 -6 -6 -6 -6 -6 -5 -5 -5 -5 -4 -4 --------- Run | Yrd Mat Min Sub Mat Sto Rec Fac Ext Cet Arc Hub Fac Upp Upp Zhi Pro Fac Distress Signals 24 | . 4 . . 4 1 1 1 3 2 . . 6 . . . 1 1 Communications Jammed . | . . . . . . . . . . . . . . . . . . Distress Signals . | . . . . . . . . . . . . . . . . . . Times Spotted 342 | . 24 11 8 28 14 11 14 40 12 25 9 80 10 1 . 16 39 Peak Tracking Total 11 | . 4 6 2 10 3 3 6 6 5 2 5 8 5 1 . 11 9 Tactical Retreats 25 | . 1 . . . . . . 2 1 . . 8 1 . . 2 10 ECM-based Alert Blocks 11 | . . . . . . . . . . . . . . . . . 11 Traps | -11 -10 -10 -10 -8 -8 -8 -6 -6 -6 -6 -6 -5 -5 -5 -5 -4 -4 ------- Run | Yrd Mat Min Sub Mat Sto Rec Fac Ext Cet Arc Hub Fac Upp Upp Zhi Pro Fac Traps Triggered 10 | . 2 . 1 . 2 . . 3 . . . 2 . . . . . Indirectly . | . . . . . . . . . . . . . . . . . . Trap Hack Attempts . | . . . . . . . . . . . . . . . . . . Triggered . | . . . . . . . . . . . . . . . . . . Disarmed . | . . . . . . . . . . . . . . . . . . Reprogrammed . | . . . . . . . . . . . . . . . . . . Reused . | . . . . . . . . . . . . . . . . . . Traps Extracted . | . . . . . . . . . . . . . . . . . . Installed . | . . . . . . . . . . . . . . . . . . Triggered . | . . . . . . . . . . . . . . . . . . Machines | -11 -10 -10 -10 -8 -8 -8 -6 -6 -6 -6 -6 -5 -5 -5 -5 -4 -4 ---------- Run | Yrd Mat Min Sub Mat Sto Rec Fac Ext Cet Arc Hub Fac Upp Upp Zhi Pro Fac Machines Disabled 29 | . 1 2 1 5 3 . 1 6 . 1 1 6 . . . . 2 Max in Single Turn 4 | . 1 2 1 2 1 . 1 1 . 1 1 4 . . . . 1 Garrison Access 3 | . . . . . . . . . . . . 2 . . . . 1 Network Hub 2 | . . . . . . . . . . . 2 . . . . . . Machines Repaired . | . . . . . . . . . . . . . . . . . . Machines Dismantled 2 | . . . . . . . . 2 . . . . . . . . . Machines Sabotaged 1 | . . . . . . . . . . . 1 . . . . . . Overloaded Fab Kills . | . . . . . . . . . . . . . . . . . . Hacking | -11 -10 -10 -10 -8 -8 -8 -6 -6 -6 -6 -6 -5 -5 -5 -5 -4 -4 --------- Run | Yrd Mat Min Sub Mat Sto Rec Fac Ext Cet Arc Hub Fac Upp Upp Zhi Pro Fac Machines Accessed 79 | . 8 1 1 10 9 12 2 12 . . 2 6 . . 4 . 12 Terminals 46 | . 6 . . 7 7 4 1 12 . . 2 2 . . . . 5 Fabricators . | . . . . . . . . . . . . . . . . . . Repair Stations 3 | . . . . . . . 1 . . . . . . . . . 2 Recycling Units 16 | . 2 . . 2 1 7 . . . . . 1 . . . . 3 Scanalyzers 3 | . . . . 1 . . . . . . . 1 . . . . 1 Garrison Access 4 | . . . . . 1 . . . . . . 2 . . . . 1 Total Hacks 251 | . 28 1 1 32 19 32 2 21 . . 4 36 . . 17 . 58 Successful 139 | . 16 1 1 22 8 20 . 8 . . 2 16 . . 17 . 28 Failed 111 | . 12 . . 9 11 12 2 13 . . 2 20 . . . . 30 Catastrophic 23 | . . . . . . 1 1 4 . . 1 5 . . . . 11 Database Lockouts 1 | . . . . 1 . . . . . . . . . . . . . Manual 95 | . 23 . . 12 9 14 . 4 1 . 4 7 . . . . 21 Terminals 133 | . 16 . . 20 15 11 1 21 . . 4 19 . . . . 26 Fabricators . | . . . . . . . . . . . . . . . . . . Repair Stations 6 | . . . . . . . 1 . . . . . . . . . 5 Recycling Units 56 | . 12 . . 6 2 19 . . . . . 2 . . . . 15 Scanalyzers 21 | . . . . 6 . . . . . . . 7 . . . . 8 Garrison Access 14 | . . . . . 2 . . . . . . 8 . . . . 4 Terminal Hacks 55 | . 1 1 1 3 5 3 . 7 . . . 8 . . 17 . 9 Record 5 | . . . . . . . . . . . . . . . 5 . . Part Schematic 4 | . . . . . . . . . . . . . . . 4 . . Robot Analysis 5 | . . . . . 1 . . . . . . . . . 4 . . Prototype ID Bank 4 | . . . . . . . . . . . . . . . 4 . . Open Door 11 | . . 1 . . 3 . . 7 . . . . . . . . . Branch Access Points 4 | . . . . 1 1 . . . . . . 1 . . . . 1 Terminal Index 2 | . 1 . . . . . . . . . . . . . . . 1 Fabricator Index 1 | . . . . . . . . . . . . . . . . . 1 Alert Level 5 | . . . . 1 . 1 . . . . . 1 . . . . 2 Unreport Threat 4 | . . . . . . . . . . . . 3 . . . . 1 Locate Traps 1 | . . . . . . . . . . . . 1 . . . . . Security Status 1 | . . . . 1 . . . . . . . . . . . . . Recall Reinforcements 1 | . . . . . . . . . . . . 1 . . . . . Registered Components 1 | . . . . . . . . . . . . . . . . . 1 Registered Prototypes 1 | . . . . . . . . . . . . . . . . . 1 Zone Layout 2 | . . . . . . . . . . . . 1 . . . . 1 Proto ID Catalog 1 | . . . 1 . . . . . . . . . . . . . . Release Object 2 | . . . . . . 2 . . . . . . . . . . . Fabricator Hacks . | . . . . . . . . . . . . . . . . . . Repair Station Hacks 2 | . . . . . . . . . . . . . . . . . 2 Scan Component 1 | . . . . . . . . . . . . . . . . . 1 Repair 1 | . . . . . . . . . . . . . . . . . 1 Recycling Unit Hacks 23 | . 2 . . 4 1 9 . . . . . 1 . . . . 6 Report Inventory 15 | . 1 . . 2 1 7 . . . . . 1 . . . . 3 Retrieve Components 8 | . 1 . . 2 . 2 . . . . . . . . . . 3 Scanalyzer 16 | . . . . 5 . . . . . . . 3 . . . . 8 Insert Component 2 | . . . . . . . . . . . . 1 . . . . 1 Analyze 5 | . . . . . . . . . . . . 1 . . . . 4 Retrieve Study 9 | . . . . 5 . . . . . . . 1 . . . . 3 Garrison Access Hacks 3 | . . . . . . . . . . . . 2 . . . . 1 Seal Access 3 | . . . . . . . . . . . . 2 . . . . 1 Unauthorized Hacks 40 | . 13 . . 10 2 8 . 1 . . 2 2 . . . . 2 Terminals 28 | . 9 . . 8 2 2 . 1 . . 2 2 . . . . 2 Assimilate 1 | . . . . 1 . . . . . . . . . . . . . Botnet 15 | . 4 . . 2 2 1 . 1 . . 1 2 . . . . 2 Skim 11 | . 5 . . 5 . 1 . . . . . . . . . . . Sabotage 1 | . . . . . . . . . . . 1 . . . . . . Fabricators . | . . . . . . . . . . . . . . . . . . Repair Stations . | . . . . . . . . . . . . . . . . . . Recycling Units 12 | . 4 . . 2 . 6 . . . . . . . . . . . Monitor 1 | . 1 . . . . . . . . . . . . . . . . Reject 2 | . 1 . . 1 . . . . . . . . . . . . . Recyclers 1 | . 1 . . . . . . . . . . . . . . . . Mask 2 | . 1 . . 1 . . . . . . . . . . . . . Tunnel 6 | . . . . . . 6 . . . . . . . . . . . Scanalyzers . | . . . . . . . . . . . . . . . . . . Garrison Access . | . . . . . . . . . . . . . . . . . . Data Cores Recovered . | . . . . . . . . . . . . . . . . . . Used . | . . . . . . . . . . . . . . . . . . Hacking Detections 52 | . 7 . . 6 7 7 2 8 . . 2 5 . . . . 8 Full Trace Events 6 | . 1 . . . . 2 . 1 . . . . . . . . 2 Feedback Events . | . . . . . . . . . . . . . . . . . . Feedback Blocked . | . . . . . . . . . . . . . . . . . . Robot Schematics Acquired . | . . . . . . . . . . . . . . . . . . Robots Built . | . . . . . . . . . . . . . . . . . . Authchips . | . . . . . . . . . . . . . . . . . . Time . | . . . . . . . . . . . . . . . . . . Total Robot Build Rating . | . . . . . . . . . . . . . . . . . . Part Schematics Acquired 5 | . . . . . . . . . . . . . . . 4 . 1 Parts Built . | . . . . . . . . . . . . . . . . . . Authchips . | . . . . . . . . . . . . . . . . . . Time . | . . . . . . . . . . . . . . . . . . Total Part Build Rating . | . . . . . . . . . . . . . . . . . . Part Studies Acquired 8 | . . . . 5 . . . . . . . . . . . . 3 Parts Repaired . | . . . . . . . . . . . . . . . . . . Time 34 | . . . . . . . . . . . . . . . . . 34 Parts Recycled . | . . . . . . . . . . . . . . . . . . Recycled Matter . | . . . . . . . . . . . . . . . . . . Retrieved Matter . | . . . . . . . . . . . . . . . . . . Retrieved Components 41 | . 2 . . 19 . 5 . . . . . . . . . . 15 Parts Scanalyzed 2 | . . . . . . . . . . . . 1 . . . . 1 Part Schematics Acquired 1 | . . . . . . . . . . . . . . . . . 1 Parts Damaged . | . . . . . . . . . . . . . . . . . . Bothacking | -11 -10 -10 -10 -8 -8 -8 -6 -6 -6 -6 -6 -5 -5 -5 -5 -4 -4 ------------ Run | Yrd Mat Min Sub Mat Sto Rec Fac Ext Cet Arc Hub Fac Upp Upp Zhi Pro Fac Used RIF Installer . | . . . . . . . . . . . . . . . . . . Robots Hacked . | . . . . . . . . . . . . . . . . . . Non-combat . | . . . . . . . . . . . . . . . . . . Combat . | . . . . . . . . . . . . . . . . . . Robot Hacks Applied . | . . . . . . . . . . . . . . . . . . Relay Couplers Released . | . . . . . . . . . . . . . . . . . . Fabnet Peak Effective % . | . . . . . . . . . . . . . . . . . . Robots Rewired 38 | . . . . . . 19 . 18 . . . . 1 . . . . Allies Hacked 2 | . . . . . . . 2 . . . . . . . . . . Hacks Repelled . | . . . . . . . . . . . . . . . . . . Allies | -11 -10 -10 -10 -8 -8 -8 -6 -6 -6 -6 -6 -5 -5 -5 -5 -4 -4 -------- Run | Yrd Mat Min Sub Mat Sto Rec Fac Ext Cet Arc Hub Fac Upp Upp Zhi Pro Fac Total Allies 72 | . . 5 . 1 10 19 . 31 5 . . . 1 . . . . Largest Group 28 | . . 5 5 5 10 26 25 28 24 16 14 . 1 1 . . . Highest-Rated Group 1038 | . . 79 79 80 173 397 363 883 1038 798 556 . 49 49 . . . Highest-Rated Ally 159 | . . 31 31 31 29 34 29 159 153 146 96 . 49 49 . . . Total Orders 24 | . . . . . 8 8 . 6 2 . . . . . . . . STAY 10 | . . . . . . 5 . 3 2 . . . . . . . . FOLLOW 6 | . . . . . . 3 . 3 . . . . . . . . . EXPLORE 8 | . . . . . 8 . . . . . . . . . . . . Ally Attacks 491 | . . 16 27 26 16 55 51 154 93 16 31 . . 6 . . . Total Damage 9335 | . . 234 397 243 . 624 694 2957 2302 518 986 . . 380 . . . Kills 60 | . . 6 6 4 . 7 6 17 8 1 5 . . . . . . Allies Corrupted 4 | . . . . . . . 1 . . . 3 . . . . . . Allies Melted 1 | . . . . . . . . 1 . . . . . . . . . Intel | -11 -10 -10 -10 -8 -8 -8 -6 -6 -6 -6 -6 -5 -5 -5 -5 -4 -4 ------- Run | Yrd Mat Min Sub Mat Sto Rec Fac Ext Cet Arc Hub Fac Upp Upp Zhi Pro Fac Active Infowar (turns) 6271 | 22 668 916 503 1135 149 . 391 . . . 172 677 448 232 156 168 634 Optics 324 | . . . . . . . . . . . . . . . . . 324 Sensors 501 | . . . . . . . . . . . . . . . . . 501 Terrain 58 | . . . . . . . . . . . . . . . . . 58 Structural 3978 | . . 916 503 . . . 391 . . . 172 676 448 232 156 168 316 Seismic 2104 | 22 668 . . 1135 149 . . . . . . . . . . . 130 ECM 242 | . . . . . . . . . . . . 1 . . . . 241 Robot Analysis Total 5 | . . . . . 1 . . . . . . . . . 4 . . Derelict Logs Recovered 7 | . . 3 . . . . . . . . . . 1 2 . 1 . Drone Launches 23 | . . . . . 23 . . . . . . . . . . . . Drone Recoveries 1 | . . . . . 1 . . . . . . . . . . . . Exploration | -11 -10 -10 -10 -8 -8 -8 -6 -6 -6 -6 -6 -5 -5 -5 -5 -4 -4 ------------- Run | Yrd Mat Min Sub Mat Sto Rec Fac Ext Cet Arc Hub Fac Upp Upp Zhi Pro Fac Turns Passed 13947 | 95 1039 918 1244 1136 1236 1211 611 1750 678 248 214 1817 453 233 158 168 738 Spaces Moved 8290 | 47 549 629 796 775 695 821 392 780 309 95 113 694 217 234 157 187 800 Core 23 | 4 . . . . . . . . . . . . . . . . 19 Treads 1102 | 43 198 . . . . . . 30 264 95 113 170 189 . . . . Legs . | . . . . . . . . . . . . . . . . . . Wheels 6416 | . 351 629 796 775 695 821 392 750 45 . . 524 26 234 152 . 226 Hover 248 | . . . . . . . . . . . . . . . 5 187 56 Flight 501 | . . . . . . . . . . . . . 2 . . . 499 Fastest Speed 23 | 50 105 135 135 113 113 113 120 121 151 157 157 115 91 91 66 66 23 Average Speed 124 | 150 140 135 135 121 117 115 121 154 181 157 164 166 123 91 92 66 43 Slowest Speed 431 | 160 160 200 135 190 135 120 210 431 253 157 205 280 292 91 145 66 200 Overloaded Moves . | . . . . . . . . . . . . . . . . . . Propulsion Burnouts . | . . . . . . . . . . . . . . . . . . Robots Hopped 4 | . . . . . . . . . . . . . . . . . 4 Potential Cave-ins 4 | . . . . . . . . . . . . 2 . . . . 2 Cave-ins Triggered . | . . . . . . . . . . . . . . . . . . Exploration Rate (%) 54 | 5 86 95 50 58 96 99 15 86 57 74 18 17 43 45 61 42 27 Regions Visited 17 Branch Regions 12 Pre-discovered Areas 12 | . . . . 2 . 6 . . . . . . . 1 3 . . Known Exits Taken 6 | . 1 . . 1 1 . 1 . . . 1 1 . . . . . Unknown Exits Taken 11 | 1 . 1 1 . . 1 . 1 1 1 . . 1 1 1 1 . Scrap Searched 9 | . . 2 4 . . . . . . . . . 1 1 . 1 . Spaces Dug 33 | . . . . . 2 1 . . . . . 5 . 1 . 1 23 Terrain Destroyed 567 | . 12 14 1 18 2 1 36 49 1 2 176 176 54 1 . 1 23 Melee 32 | . . . . . 2 1 . . . . . 5 . . . 1 23 Projectile 130 | . . . 1 3 . . . 9 1 2 1 106 6 1 . . . AOE 405 | . 12 14 . 15 . . 36 40 . . 175 65 48 . . . . Terrain Rammed . | . . . . . . . . . . . . . . . . . . Walls Destroyed . | . . . . . . . . . . . . . . . . . . Machines Disabled . | . . . . . . . . . . . . . . . . . . Actions | -11 -10 -10 -10 -8 -8 -8 -6 -6 -6 -6 -6 -5 -5 -5 -5 -4 -4 --------- Run | Yrd Mat Min Sub Mat Sto Rec Fac Ext Cet Arc Hub Fac Upp Upp Zhi Pro Fac Total 10817 | 62 729 673 922 891 1035 1061 480 1172 424 167 127 1025 363 242 170 212 1062 Wait 977 | . 77 19 74 18 169 81 37 60 53 54 . 83 112 1 2 12 125 Move 8266 | 46 548 628 795 774 694 820 391 779 308 94 113 693 216 233 156 186 792 Hop 4 | . . . . . . . . . . . . . . . . . 4 Pick Up 161 | 6 29 3 9 22 21 3 8 5 17 2 1 22 1 . 1 . 11 Fast Attach 73 | 7 2 1 . 3 7 . 1 1 2 . . 9 1 . 3 . 36 Attach 54 | . 1 1 1 11 4 1 4 1 2 . 1 20 1 . . . 6 Detach 12 | . . . . . 1 . . . 2 . . 3 1 . 2 . 3 Swap 125 | . 12 4 8 7 25 7 8 9 5 . 4 21 5 2 3 2 3 Drop 149 | . 11 5 11 14 32 6 5 6 25 2 1 12 2 . 3 . 14 Fire 508 | 3 47 12 19 42 55 16 26 74 10 14 7 155 18 6 . . 4 Melee 113 | . . . 5 . 23 4 . . . . . 7 . . . 12 62 Ram 2 | . . . . . . . . . . . . . . . . . 2 Kick . | . . . . . . . . . . . . . . . . . . Crush 3 | . 2 . . . . . . . . 1 . . . . . . . Escape Stasis 22 | . . . . . . . . 22 . . . . . . . . . Rewire 328 | . . . . . 1 123 . 198 . . . . 6 . . . . Trap . | . . . . . . . . . . . . . . . . . . Miscellaneous 20 | . . . . . 3 . . 17 . . . . . . . . . Route ------- -11/Scrapyard -10/Materials (discovered 6 exits: *Mat x3 / *Min x2 / *Sub) -10/Mines (discovered 3 exits: *Mat x2 / *Sub) -10/Subcaves (discovered 2 exits: *Mat / [*Scr]) -8/Materials (discovered 3 exits: *Fac x2 / *Sto) -8/Storage (discovered 2 exits: *Fac / *Rec) -8/Recycling -6/Factory (discovered 5 exits: *Fac x2 / *Low x2 / *Ext) -6/Extension (discovered 2 exits: *Fac / *Cet) -6/Cetus (discovered 2 exits: *Fac / [*Arc]) -6/Archives (discovered 2 exits: *Hub x2) -6/Hub_04(d) (discovered 2 exits: *Fac x2) -5/Factory (discovered 2 exits: *Upp x2) -5/Upper Caves -5/Upper Caves (discovered 2 exits: *Fac / *Zhi) -5/Zhirov -4/Proximity Caves -4/Factory (discovered 2 exits: Upp x2) History --------- Turn | Location | Event 11 | -11/Scrapyard | Discovered new exit (range 15) 96 | -11/Scrapyard | Entered Materials 288 | -10/Materials | Discovered new exit (range 9) 306 | -10/Materials | Build established: Mutant 366 | -10/Materials | Discovered new exit (range 10) 545 | -10/Materials | Discovered new exit (range 14) 681 | -10/Materials | Discovered new exit (range 11) 1041 | -10/Materials | Identified exit to Materials 1041 | -10/Materials | Identified exit to Mines 1041 | -10/Materials | Learned location of 1 exit from Materials 1072 | -10/Materials | Loaded intel: 8 terminal locations 1106 | -10/Materials | Learned Materials stockpile data 1135 | -10/Materials | Entered Mines 1163 | -10/Mines | Discovered exit to Materials (range 14) 1218 | -10/Mines | Found the Drone Emporium 1219 | -10/Mines | Learned Materials terminal intel 1225 | -10/Mines | Found Prototype Device 1258 | -10/Mines | Discovered new exit (range 10) 1388 | -10/Mines | Received a Rocket Launcher from a helpful Derelict 1487 | -10/Mines | Learned Materials stockpile data 1718 | -10/Mines | Assisted by bots powering up and referring to "LRC-V3" 1832 | -10/Mines | Discovered exit to Materials (range 16) 1906 | -10/Mines | Core integrity fell below 50% 2053 | -10/Mines | Entered Subcaves 2053 | -10/Subcaves | Accompanied by 5 allies 2054 | -10/Subcaves | Approached by a straggling Scientist 2058 | -10/Subcaves | Led the pair of lost Derelicts to an unsafe place 2080 | -10/Subcaves | Shifting Twisted Machinery released Battle Cannon 2096 | -10/Subcaves | Shifting Twisted Machinery released Sub. Laser 2100 | -10/Subcaves | Scientist uncovered a shortcut to Scraptown 2282 | -10/Subcaves | Visited 4L-MR0's lab 2297 | -10/Subcaves | Found Rainbow Chip 2584 | -10/Subcaves | Core integrity fell below 20% 3284 | -10/Subcaves | Discovered new exit (range 5) 3297 | -10/Subcaves | Entered Materials 3297 | -8/Materials | Accompanied by 4 allies 3297 | -8/Materials | Evolved 4 slots: Propulsion x1, Utility x2, Weapon x1 3298 | -8/Materials | Identified exit to Storage 3300 | -8/Materials | Loaded intel: 12 terminal locations 3418 | -8/Materials | Lost 4 allies 3480 | -8/Materials | Destroyed 8 combat bots 3489 | -8/Materials | Lost 9 parts (2n5u2w) 3535 | -8/Materials | Central database locked down 3685 | -8/Materials | Discovered new exit (range 16) 3800 | -8/Materials | Build established: Scavenger-Tank 4093 | -8/Materials | Learned 2 Lower Caves zone layouts 4133 | -8/Materials | Learned Recycling recycling unit intel 4164 | -8/Materials | Learned location of Zion (-6) 4194 | -8/Materials | Learned Factory trap positions 4195 | -8/Materials | Learned 2 Storage zone layouts 4196 | -8/Materials | Learned Storage stockpile data 4197 | -8/Materials | Identified exit to Factory 4203 | -8/Materials | Learned location of 3 exits from Factory 4221 | -8/Materials | Learned location of 1 exit from Lower Caves 4248 | -8/Materials | Learned 4 Factory zone layouts 4433 | -8/Materials | Entered Storage 4568 | -8/Storage | Identified exit to Recycling 4583 | -8/Storage | Identified Bomb Drone Bay 4673 | -8/Storage | Lost 9 allies 4721 | -8/Storage | Used back door to open Recycling access 4860 | -8/Storage | Garrison activated, responded to threat 4882 | -8/Storage | Discovered exit to Factory (range 16) 5089 | -8/Storage | Build established: Tank 5408 | -8/Storage | Found Prototype Launcher 5408 | -8/Storage | Identified Scatter Rocket Array 5439 | -8/Storage | Assisted by bots powering up and referring to "LRC-V3" 5669 | -8/Storage | Entered Recycling 5669 | -8/Recycling | Accompanied by 10 allies 5670 | -8/Recycling | Loaded intel: 8 recycling unit locations 5736 | -8/Recycling | Build established: Commander-Tank 6003 | -8/Recycling | Entered Scraplab 6112 | -8/Recycling | Found Prototype Device 6135 | -8/Recycling | Identified Scrap Engine 6296 | -8/Recycling | Build established: Commander-Mutant 6328 | -8/Recycling | Lost 3 allies 6660 | -8/Recycling | Discovered new exit (range 16) 6720 | -8/Recycling | Build established: Commander-Tank 6880 | -8/Recycling | Entered Factory 6880 | -6/Factory | Accompanied by 25 allies 6880 | -6/Factory | Evolved 4 slots: Propulsion x1, Utility x3 6881 | -6/Factory | Identified exit to Lower Caves 6881 | -6/Factory | Identified exit to Extension 6882 | -6/Factory | Identified exit to Factory 6883 | -6/Factory | Loaded intel: 87 trap records 7013 | -6/Factory | Discovered exit to Factory (range 13) 7230 | -6/Factory | Search patrols dispatched 7324 | -6/Factory | Lost 13 allies 7491 | -6/Factory | Entered Extension 7491 | -6/Extension | Accompanied by 6 allies 7596 | -6/Extension | Lost 4 allies 7885 | -6/Extension | Rescued a captive Derelict 8072 | -6/Extension | Lost 3 allies 8142 | -6/Extension | Rescued a captive Derelict 8143 | -6/Extension | Rescued a captive Derelict 8441 | -6/Extension | Disrupted transfer network 8511 | -6/Extension | Warlord forces began an assault 8674 | -6/Extension | Spotted B-75 Beast 8691 | -6/Extension | Destroyed B-75 Beast 8782 | -6/Extension | Rescued a captive Derelict 8842 | -6/Extension | Rescued a captive Derelict 8880 | -6/Extension | Rescued a captive Derelict 8881 | -6/Extension | Rescued a captive Derelict 8914 | -6/Extension | Rescued a captive Derelict 8915 | -6/Extension | Rescued a captive Derelict 8941 | -6/Extension | Rescued A7 8982 | -6/Extension | Rescued a captive Derelict 8983 | -6/Extension | Rescued a captive Derelict 9105 | -6/Extension | Rescued a captive Derelict 9140 | -6/Extension | Discovered exit to Factory (range 10) 9141 | -6/Extension | Discovered new exit (range 6) 9241 | -6/Extension | First assault squad dispatched 9241 | -6/Extension | Entered Cetus 9241 | -6/Cetus | Accompanied by 24 allies (A7) 9246 | -6/Cetus | Acquired a Cetus Manufacturing Module code from A7 9260 | -6/Cetus | Spotted Cetus Guard 9260 | -6/Cetus | Spotted Cetus Guard 9265 | -6/Cetus | Spotted Cetus Guard 9272 | -6/Cetus | Allies destroyed Cetus Guard 9276 | -6/Cetus | Spotted Cetus Guard 9276 | -6/Cetus | Destroyed Cetus Guard 9284 | -6/Cetus | Allies destroyed Cetus Guard 9296 | -6/Cetus | Allies destroyed Cetus Guard 9316 | -6/Cetus | Lost 5 allies 9508 | -6/Cetus | Started Cetus Manufacturing Module 9533 | -6/Cetus | Manufactured an Enhanced Grunt 9558 | -6/Cetus | Manufactured an Enhanced Grunt 9563 | -6/Cetus | Discovered new exit (range 15) 9583 | -6/Cetus | Manufactured an Enhanced Grunt 9595 | -6/Cetus | Spotted Cetus Guard 9595 | -6/Cetus | Spotted Cetus Guard 9608 | -6/Cetus | Manufactured an Enhanced Grunt 9610 | -6/Cetus | Spotted Cetus Guard 9610 | -6/Cetus | Allies destroyed Cetus Guard 9614 | -6/Cetus | Spotted Cetus Guard 9626 | -6/Cetus | Allies destroyed Cetus Guard 9626 | -6/Cetus | Allies destroyed Cetus Guard 9629 | -6/Cetus | Allies destroyed Cetus Guard 9633 | -6/Cetus | Manufactured an Enhanced Grunt 9635 | -6/Cetus | Discovered exit to Factory (range 15) 9652 | -6/Cetus | Met Revision 17 9655 | -6/Cetus | Lost 7 allies 9838 | -6/Cetus | Build established: Commander-Construct 9919 | -6/Cetus | Entered Archives 9919 | -6/Archives | Accompanied by 16 allies (A7) 9993 | -6/Archives | Discovered new exit (range 15) 10012 | -6/Archives | Discovered new exit (range 15) 10167 | -6/Archives | Entered Hub_04(d) 10167 | -6/Hub_04(d) | Accompanied by 14 allies 10209 | -6/Hub_04(d) | Discovered exit to Factory (range 16) 10266 | -6/Hub_04(d) | Network Hub disabled 10325 | -6/Hub_04(d) | Spotted Lightning 10325 | -6/Hub_04(d) | Spotted Lightning 10326 | -6/Hub_04(d) | Spotted Lightning 10351 | -6/Hub_04(d) | Lost 12 allies 10368 | -6/Hub_04(d) | Network Hub disabled 10368 | -6/Hub_04(d) | Discovered exit to Factory (range 8) 10369 | -6/Hub_04(d) | System corruption reached 10% 10381 | -6/Hub_04(d) | Entered Factory 10381 | -5/Factory | Evolved 2 slots: Utility x2 10684 | -5/Factory | Build established: Scavenger-Mutant 10872 | -5/Factory | Attached Rainbow Chip, gained temporary slots: Power, Propulsion, Utility, Weapon 11104 | -5/Factory | Destroyed 11 combat bots 11172 | -5/Factory | Lost 4 parts (1n3u) 11252 | -5/Factory | Build established: Scavenger-Tank 11747 | -5/Factory | Garrison activated, responded to threat 11881 | -5/Factory | First assault squad dispatched 11938 | -5/Factory | Identified exit to Upper Caves 12198 | -5/Factory | Entered Upper Caves 12410 | -5/Upper Caves | Encountered a Warlord checkpoint 12451 | -5/Upper Caves | Attracted the attention of an 0b10 outpost 12455 | -5/Upper Caves | Learned Factory trap positions 12610 | -5/Upper Caves | Discovered new exit (range 11) 12651 | -5/Upper Caves | Entered another Upper Caves area 12651 | -5/Upper Caves | Accompanied by 1 ally 12656 | -5/Upper Caves | Discovered new exit (range 14) 12829 | -5/Upper Caves | Spotted B-75 Beast 12876 | -5/Upper Caves | Discovered new exit (range 10) 12884 | -5/Upper Caves | Entered Zhirov 12887 | -5/Zhirov | Discovered new exit (range 3) 12903 | -5/Zhirov | Met Zhirov 12923 | -5/Zhirov | Learned location of Quarantine (-2) 12923 | -5/Zhirov | Learned location of Command (-1) 12935 | -5/Zhirov | Zhirov requested help retrieving the SGEMP Prototype 12948 | -5/Zhirov | Found Alien Artifact 12948 | -5/Zhirov | Identified Integrated Dissipator 12948 | -5/Zhirov | Installed Integrated Dissipator, increased core heat dissipation (+20) 12962 | -5/Zhirov | Found Alien Artifact 13042 | -5/Zhirov | Entered Proximity Caves 13052 | -4/Proximity Caves | Spotter reported a threat 13059 | -4/Proximity Caves | System corruption reached 10% 13087 | -4/Proximity Caves | Learned Research security intel 13108 | -4/Proximity Caves | Spotter reported a threat 13143 | -4/Proximity Caves | Spotter reported a threat 13179 | -4/Proximity Caves | Build established: Scavenger-Mutant 13196 | -4/Proximity Caves | Spotter reported a threat 13208 | -4/Proximity Caves | Discovered new exit (range 4) 13210 | -4/Proximity Caves | Entered Factory 13210 | -4/Factory | Evolved 2 slots: Power x1, Propulsion x1 13211 | -4/Factory | Loaded intel: 82 trap records 13219 | -4/Factory | Identified exit to Upper Caves 13424 | -4/Factory | Spotted B-86 Titan 13460 | -4/Factory | Search patrols dispatched 13507 | -4/Factory | Build established: Mutant 13542 | -4/Factory | Core integrity fell below 50% 13567 | -4/Factory | Core integrity fell below 20% 13593 | -4/Factory | Found Quantum Capacitor 13595 | -4/Factory | Lost 20 parts (2p4n10u4w) 13705 | -4/Factory | Spotted B-86 Titan 13710 | -4/Factory | Search patrols dispatched 13845 | -4/Factory | Lost 3 parts (1p1n1u) 13898 | -4/Factory | Found Prototype Device 13898 | -4/Factory | Identified Exp. ECM Suite 13948 | -4/Factory | Lost 5 parts (2n2u1w) 13948 | -4/Factory | Destroyed by G-73 Enforcer with Phase Gun Last Messages --------------- 13909_ Dropped Adv. KE Penetrator. 13911_ Acquired Graphene Brace. 13914_ Structural Scanner destroyed. 13914_ VTOL Module+ destroyed. 13914_ Slug penetrates Wall. 13915_ Acquired Imp. Melee Analysis Suite. 13917_ Nuclear Reactor explodes. 13917_ Centrium Greatsword destroyed. 13917_ VTOL Module+ destroyed. 13917_ Adv. Sensor Array destroyed. 13917_ Critical hit (Blast). 13917_ Penetrated by Slug. 13917_ Slug penetrates Subcomponent Replicator. 13917_ Subcomponent Replicator disabled. 13924_ Acquired Hvy. Pick. 13927_ K-01 Serf cleans the Nuclear Reactor. 13931_ Acquired Scythe. 13940_ Acquired Adv. Focal Shield. 13945_ ALERT: Security rotation in progress. 13945_ G-73 Enforcer unfolds itself. Map ----- +----------------------------------------------------+ | ?????????????????????????????????????????????????? | | ?????????????????????????????????????????????????? | | ?????????????????????????????????????????????????? | | ?????????????????????????????????????????????????? | | ?????????????????????????????????????????????????? | | ?????????????????????????????????????????????????? | | ?????????????????????????????????????????????????? | | ?????????????????????????????????????????????????? | | ?????????????????????????????????????????????????? | | ?????????????????????????????????????????????????? | | ?????????????????????????????????????????????????? | | ?????????????????????????????????????????????????? | | ?????????????????????????????????????????????????? | | #####????????????????????????????????????????????? | | ??????????????????????????????????????????? | | ?????????????????????????????????????????? | | ????????????????????????????????????????? | | ????????????????????????????????????????? | | ????????????????????????????????????????? | | ????????????????????????????????????????? | | ?????????????????????????????????????????? | | ????????????????###???????????????????????? | | ??????????????????# ???????????????????????? | | #??#####+#####???????# #???????????????????????? | | #??# """ """ #???????#+############????????????? | | #??# """ """ #???????# @ gg/ #?????? | | #??# """ """ #???????# """ #????????????? | | #??# ######### """ ""T"" #????????????? | | #### ! / + """ """"" #????????????? | | / #### # #????????????? | | #### ] #??# ##############????????????? | | ###??# #??# #?????????????????????????? | | ?????###########??# #?????????????????????????? | | ##? ??????????????# #????????=????????????????? | | ##???????????????? ????????????????????]????? | | ##???????????????########????????????????????????? | | ##???????????????????????????????????????????????? | | ##? ?????????????????????????????????????????????? | | ##?????? ????????????????????????????????????????? | | ##???????????????????????????????????????????????? | | ##???????????????????????????????????????????????? | | ##???????????????????????????????????????????????? | | ##?? ??? ????????????????????????????????????????? | | ##???????????????????????????????????????????????? | | ##???????????????????????????????????????????????? | | ##???????????????????????????????????????????????? | | ?????????????????????????????????????????????????? | | ?????????????????????????????????????????????????? | | ?????????????????????????????????????????????????? | | ?????????????????????????????????????????????????? | +----------------------------------------------------+ Best States ------------- Heat Dissipation 79 Energy Generation 37 Energy Capacity 400 Matter Stores 300 Matter Capacity 300 Sight Range 20 Robot Scan Range 16 Terrain Scan Range 14 Terrain Scan Density 85 ECM Strength 3 Power Amplification 30 Additional Mass Support 12 Armor Coverage 1125 Resistance: KI 20 Resistance: EM 20 Weapon Cycling 15 Melee Speed Boost 30 Evasion (%) 74 Targeting Accuracy 8 Melee Accuracy 6 Recoil Reduction 4 Offensive Hacking 24 Authchip Count 1 Item Schematics ----------------- Assault Drone Bay | -5/Zhirov | Free Exp. Optical Array | -5/Zhirov | Free Exp. Heat Sink | -5/Zhirov | Free Imp. Arc Thrower | -5/Zhirov | Free Enh. Force Lance | -4/Factory | Scanalyzed Robot Schematics ------------------ None Fabricated ------------ Nothing Repaired ---------- Nothing Studied --------- Wheel | -8/Materials | Hacked Com. Wheel | -8/Materials | Hacked Assault Rifle | -8/Materials | Hacked Hvy. Assault Rifle | -8/Materials | Hacked Nuclear Core | -8/Materials | Hacked VTOL Module | -4/Factory | Hacked Lgt. Antimatter Reactor | -4/Factory | Hacked Lgt. Nuclear Core | -4/Factory | Hacked Alien Tech Used ----------------- Integrated Dissipator Achievements -------------- Not So Scrappy Scrappetite Challenges ------------ None Game ------ Seed ShrapnelArmorMachine Manual? 0 Play Time 03:09:14 Cumulative 282.3 hours Start 2025.11.17 @ 20:41:19 End 2025.11.18 @ 00:32:26 Sessions 7 Manual Loads 0 Difficulty Rogue Special Mode None Game No. 301 Rogue 301 Adventurer 0 Explorer 0 Win Type - Total 12 Types 5/0/3/1/1/0/0/1/0/1 Lore% 77 Gallery% 75 Achievement% 56 Wizard Run 0 Options --------- Layout 1 ASCII 0 Keyboard 1 Movement Numpad Keybinds 0 Fullscreen 2 Font 32/SmallcapsGlow Map View 77x35 Zoom Use 0% Tactical HUD 1 Map Filters NONE Filters NONE Steam 1 RUN: 2b40c48b-d446-4061-ad30-6984ff7c78a7